bitfinex-derivatives/quotes_BTCF0:USTF0_20250907
["timestamp","ask_amount","ask_price","bid_price","bid_amount"]
[1757279685134,1.59323292,111340.0,111330.0,0.09907301]
[1757279685330,1.59323292,111340.0,111330.0,0.11211356]
[1757279685533,1.59323292,111340.0,111330.0,0.13347356]
[1757279687438,1.59323292,111340.0,111330.0,0.11211356]
[1757279690242,1.59323292,111340.0,111330.0,0.03127055]
[1757279691038,1.59323292,111340.0,111330.0,0.05263055]
[1757279691444,1.59323292,111340.0,111330.0,0.16581204]
[1757279692343,1.59323292,111340.0,111330.0,0.14445204]
[1757279692644,1.59323292,111340.0,111330.0,0.14445222]
[1757279693043,1.59323292,111340.0,111330.0,0.16581222]
[1757279693444,1.59323292,111340.0,111330.0,0.14445222]
[1757279694144,1.59323292,111340.0,111330.0,0.16581222]
[1757279694344,1.59323292,111340.0,111330.0,0.14445222]
[1757279695144,1.59323292,111340.0,111330.0,0.16581222]
[1757279695344,1.59323292,111340.0,111330.0,0.14445222]
[1757279695744,1.59323292,111340.0,111330.0,0.16581222]
[1757279697249,1.59323292,111340.0,111330.0,0.14445222]
[1757279697947,1.59323292,111340.0,111330.0,0.16581222]
[1757279699447,1.59323292,111340.0,111330.0,0.14445222]
[1757279706156,1.59323292,111340.0,111330.0,0.13141149]
[1757279709751,1.59323292,111340.0,111330.0,0.15445149]
[1757279710955,0.77575292,111340.0,111330.0,0.15445149]
[1757279711155,1.59295292,111340.0,111330.0,0.15445149]
[1757279712058,1.59295292,111340.0,111330.0,0.13141149]
[1757279716353,1.59295292,111340.0,111330.0,0.11867149]
[1757279716557,1.59295292,111340.0,111330.0,0.00549]
[1757279717258,1.59295292,111340.0,111330.0,0.0863383]
[1757279723664,1.59295292,111340.0,111330.0,0.00549]
[1757279730368,1.59295292,111340.0,111330.0,0.08631069]
[1757279738374,1.39517559,111340.0,111330.0,0.08631069]
[1757279775495,1.39717559,111340.0,111330.0,0.08631069]
[1757279775694,1.39917559,111340.0,111330.0,0.08531069]
[1757279790309,1.39917559,111340.0,111330.0,0.00449]
[1757279793304,1.84701634,111340.0,111320.0,0.08092069]
[1757279793511,0.02172,111310.0,111300.0,0.1491615]
[1757279793710,1.34896075,111310.0,111300.0,0.31011817]
[1757279793914,1.34896075,111310.0,111300.0,0.19693668]
[1757279794414,1.34896075,111310.0,111300.0,0.03588001]
[1757279795310,1.34896075,111310.0,111300.0,0.03688001]
[1757279795910,1.34896075,111310.0,111300.0,0.1500615]
[1757279796110,1.34896075,111310.0,111300.0,0.1520615]
[1757279796906,1.35783383,111310.0,111300.0,0.1520615]
[1757279797812,1.42875656,111310.0,111300.0,0.1520615]
[1757279798411,1.4288259,111310.0,111300.0,0.1520615]
[1757279799513,1.4288259,111310.0,111300.0,0.03888001]
[1757279801416,1.4288259,111310.0,111300.0,0.1520615]
[1757279804818,1.4288259,111310.0,111300.0,0.03888001]
[1757279805722,1.4288259,111310.0,111300.0,0.003]
[1757279805919,1.4288259,111310.0,111300.0,0.02571]
[1757279809219,1.4288259,111310.0,111300.0,0.003]
[1757279810124,1.4288259,111310.0,111300.0,0.02571]
[1757279810324,1.4288259,111310.0,111300.0,0.10637806]
[1757279810822,1.4288259,111310.0,111300.0,0.02571]
[1757279811117,1.4288259,111310.0,111300.0,0.003]
[1757279811517,1.4288259,111310.0,111300.0,0.08367084]
[1757279811816,1.4288259,111310.0,111300.0,0.10638084]
[1757279812017,1.4280659,111310.0,111300.0,0.12012084]
[1757279812624,1.62597599,111310.0,111300.0,0.10638084]
[1757279812825,1.4280659,111310.0,111300.0,0.10638084]
[1757279814625,1.4280659,111310.0,111300.0,0.08367084]
[1757279816222,1.4280659,111310.0,111300.0,0.10638084]
[1757279816522,1.4280659,111310.0,111300.0,0.02571]
[1757279818325,1.4280659,111310.0,111300.0,0.13889149]
[1757279818724,1.23015581,111310.0,111300.0,0.15263149]
[1757279818926,1.4280659,111310.0,111300.0,0.15263149]
[1757279820526,1.4280659,111310.0,111300.0,0.11618149]
[1757279820729,1.62597599,111310.0,111300.0,0.13889149]
[1757279821025,1.4280659,111310.0,111300.0,0.13889149]
[1757279821524,1.4280659,111310.0,111300.0,0.11618149]
[1757279821823,1.4280659,111310.0,111300.0,0.003]
[1757279822024,1.4280659,111310.0,111300.0,0.02571]
[1757279822426,1.62597599,111310.0,111300.0,0.003]
[1757279822726,1.4280659,111310.0,111300.0,0.003]
[1757279823631,1.62597599,111310.0,111300.0,0.11618149]
[1757279829523,0.80733599,111310.0,111300.0,0.11618149]
[1757279829724,1.62821599,111310.0,111300.0,0.11618149]
[1757279830125,0.41151581,111310.0,111300.0,0.11618149]
[1757279830325,1.4303059,111310.0,111300.0,0.13872149]
[1757279830525,0.6094259,111310.0,111300.0,0.11618149]
[1757279830726,1.4302659,111310.0,111300.0,0.11618149]
[1757279833826,1.62825599,111310.0,111300.0,0.11618149]
[1757279837632,1.62825599,111310.0,111300.0,0.12067149]
[1757279845630,1.62793599,111310.0,111300.0,0.12067149]
[1757279846634,1.62793599,111310.0,111300.0,0.05067362]
[1757279846833,1.62793599,111310.0,111300.0,0.00449]
[1757279848233,0.80733599,111310.0,111300.0,0.00449]
[1757279848434,1.62797599,111310.0,111300.0,0.00449]
[1757279852638,0.80733599,111310.0,111300.0,0.00449]
[1757279852840,1.62785599,111310.0,111300.0,0.00449]
[1757279855840,1.62785599,111310.0,111300.0,0.08534304]
[1757279857040,1.4299459,111310.0,111300.0,0.08534304]
[1757279858641,1.62765599,111310.0,111300.0,0.08534304]
[1757279860342,1.42977252,111310.0,111300.0,0.08534304]
[1757279867947,1.42905252,111310.0,111300.0,0.08534304]
[1757279898065,0.41151581,111310.0,111300.0,0.12001304]
[1757279898362,1.42821252,111310.0,111300.0,0.03916]
[1757279898563,1.42821252,111310.0,111300.0,0.15234418]
[1757279898760,1.23027581,111310.0,111300.0,0.15234418]
[1757279898969,0.60945252,111310.0,111300.0,0.15234418]
[1757279899168,1.42809252,111310.0,111300.0,0.15234418]
[1757279900062,1.42809252,111310.0,111300.0,0.03916]
[1757279901159,1.42809252,111310.0,111300.0,0.1200171]
[1757279901566,1.42809252,111310.0,111300.0,0.03916]
[1757279901766,1.42809252,111310.0,111300.0,0.15234418]
[1757279903266,1.42809252,111310.0,111300.0,0.03916]
[1757279904570,1.42809252,111310.0,111300.0,0.12000125]
[1757279905766,1.42809252,111310.0,111300.0,0.03916]
[1757279906469,1.42809252,111310.0,111300.0,0.11999689]
[1757279908680,1.23015581,111310.0,111300.0,0.11999689]
[1757279908881,1.42809252,111310.0,111300.0,0.11999689]
[1757279913485,0.60945252,111310.0,111300.0,0.11999689]
[1757279913681,1.42941252,111310.0,111300.0,0.11999689]
[1757279920288,1.4293724,111310.0,111300.0,0.11999689]
[1757279921488,1.4293724,111310.0,111300.0,0.03916]
[1757279925393,1.4293724,111310.0,111300.0,0.15234418]
[1757279935000,1.23147581,111310.0,111300.0,0.15234418]
[1757279935301,1.4293724,111310.0,111300.0,0.15234418]
[1757279946506,1.62726899,111310.0,111300.0,0.11767418]
[1757279946706,1.62726899,111310.0,111300.0,0.00449]
[1757279951509,1.62726899,111310.0,111300.0,0.08535219]
[1757279961626,1.62726899,111310.0,111300.0,0.00449]
[1757279966229,1.62726899,111310.0,111300.0,0.04029]
[1757279966430,1.62506899,111310.0,111300.0,0.04029]
[1757279967330,0.80730899,111310.0,111300.0,0.04029]
[1757279967929,1.62506899,111310.0,111300.0,0.04029]
[1757279968432,1.22927581,111310.0,111300.0,0.04029]
[1757279968922,1.62506899,111310.0,111300.0,0.04029]
[1757279969125,1.62506899,111310.0,111300.0,0.121149]
[1757279969323,1.62506899,111310.0,111300.0,0.04029]
[1757279969524,0.41151581,111310.0,111300.0,0.04029]
[1757279969731,1.4271724,111310.0,111300.0,0.04029]
[1757279970432,0.6094124,111310.0,111300.0,0.04029]
[1757279970633,1.4271724,111310.0,111300.0,0.04029]
[1757279974237,0.6094124,111310.0,111300.0,0.04029]
[1757279974440,1.4271724,111310.0,111300.0,0.04029]
[1757279974637,1.4271724,111310.0,111300.0,0.12115603]
[1757279975237,1.4271724,111310.0,111300.0,0.23434021]
[1757279975438,1.4271724,111310.0,111300.0,0.15347418]
[1757279975937,1.62506899,111310.0,111300.0,0.15347418]
[1757279976535,0.80730899,111310.0,111300.0,0.15347418]
[1757279976838,1.62506899,111310.0,111300.0,0.15347418]
[1757279977539,0.80730899,111310.0,111300.0,0.15347418]
[1757279977838,1.62502899,111310.0,111300.0,0.15347418]
[1757279978041,1.4271324,111310.0,111300.0,0.15347418]
[1757279978338,0.6094124,111310.0,111300.0,0.15347418]
[1757279978540,1.4271324,111310.0,111300.0,0.15347418]
[1757279982446,1.42713848,111310.0,111300.0,0.15347418]
[1757279989350,1.42713848,111310.0,111300.0,0.04029]
[1757279998954,1.42713848,111310.0,111300.0,0.15347418]
[1757280000357,1.42713848,111310.0,111300.0,0.23433008]
[1757280000558,1.42713848,111310.0,111300.0,0.1211459]
[1757280005165,1.22923581,111310.0,111300.0,0.1211459]
[1757280005355,1.42713848,111310.0,111300.0,0.1211459]
[1757280006561,1.42713848,111310.0,111300.0,0.04029]
[1757280011973,1.42713848,111310.0,111300.0,0.15347418]
[1757280028181,1.42713848,111310.0,111300.0,0.23434731]
[1757280028382,1.42713848,111310.0,111300.0,0.12116313]
[1757280036504,1.42713848,111310.0,111300.0,0.04029]
[1757280036696,1.42713848,111310.0,111300.0,0.15347418]
[1757280037200,1.42713848,111310.0,111300.0,0.04029]
[1757280039101,1.42713848,111310.0,111300.0,0.15347418]
[1757280041604,1.42713848,111310.0,111300.0,0.04029]
[1757280044408,1.42714085,111310.0,111300.0,0.04029]
[1757280049111,1.62504589,111310.0,111300.0,0.04029]
[1757280051615,1.62504589,111310.0,111300.0,0.15347418]
[1757280052711,1.42714085,111310.0,111300.0,0.15347418]
[1757280061318,1.42714085,111310.0,111300.0,0.04029]
[1757280064520,1.42714085,111310.0,111300.0,0.15347418]
[1757280081328,1.62504589,111310.0,111300.0,0.15347418]
[1757280090729,1.62504589,111310.0,111300.0,0.04029]
[1757280091734,1.62504589,111310.0,111300.0,0.12111057]
[1757280096139,1.64504589,111310.0,111300.0,0.12111057]
[1757280098741,1.64380589,111310.0,111300.0,0.12111057]
[1757280099037,1.64380589,111310.0,111300.0,0.04029]
[1757280101938,1.64380589,111310.0,111300.0,0.15347418]
[1757280103843,0.82732589,111310.0,111300.0,0.15347418]
[1757280104142,1.64372589,111310.0,111300.0,0.15347418]
[1757280106342,1.44582829,111310.0,111300.0,0.15347418]
[1757280109339,1.44582829,111310.0,111300.0,0.23429356]
[1757280109542,1.44582829,111310.0,111300.0,0.12110938]
[1757280119548,1.44582829,111310.0,111300.0,0.04029]
[1757280122252,1.44582829,111310.0,111300.0,0.12110347]
[1757280130658,1.44582829,111310.0,111300.0,0.08530347]
[1757280134460,1.24791581,111310.0,111300.0,0.08530347]
[1757280134761,1.44538829,111310.0,111300.0,0.08530347]
[1757280145363,1.44538829,111310.0,111300.0,0.00449]
[1757280148661,0.62942829,111310.0,111300.0,0.00449]
[1757280148868,1.44518829,111310.0,111300.0,0.02582]
[1757280149366,1.44518829,111310.0,111300.0,0.03879]
[1757280149769,1.44518829,111310.0,111300.0,0.00449]
[1757280150070,1.44518829,111310.0,111300.0,0.02582]
[1757280151568,1.44518829,111310.0,111300.0,0.00449]
[1757280151769,1.44518829,111310.0,111300.0,0.08528791]
[1757280153270,1.44518829,111310.0,111300.0,0.00449]
[1757280155074,1.44518829,111310.0,111300.0,0.08529009]
[1757280155372,1.44518829,111310.0,111300.0,0.00449]
[1757280157677,1.44518829,111310.0,111300.0,0.08529312]
[1757280159074,1.44518829,111310.0,111300.0,0.00449]
[1757280166286,1.44520617,111310.0,111300.0,0.00449]
[1757280166484,1.64313653,111310.0,111300.0,0.00449]
[1757280174384,1.64313653,111310.0,111300.0,0.02695]
[1757280175685,1.64313653,111310.0,111300.0,0.03997]
[1757280181690,1.64313653,111310.0,111300.0,0.12079325]
[1757280189709,1.64313653,111310.0,111300.0,0.09833325]
[1757280191204,1.64313653,111310.0,111300.0,0.08531325]
[1757280191709,1.64313653,111310.0,111300.0,0.00449]
[1757280192008,1.64313653,111310.0,111300.0,0.08532172]
[1757280198108,0.02851,111300.0,111290.0,0.11328418]
[1757280198309,0.74437072,111300.0,111290.0,0.11318418]
[1757280198510,0.74437072,111300.0,111280.0,0.14503968]
[1757280198712,1.03473036,111290.0,111280.0,0.16780968]
[1757280198915,1.39473036,111290.0,111280.0,0.16770968]
[1757280200013,1.39473036,111290.0,111280.0,0.17870968]
[1757280200605,1.39473036,111290.0,111280.0,0.18670968]
[1757280201914,1.39473036,111290.0,111280.0,0.20170968]
[1757280202113,1.39473036,111290.0,111280.0,0.0885255]
[1757280206817,1.59266072,111290.0,111280.0,0.0885255]
[1757280207014,1.59266072,111290.0,111280.0,0.16928805]
[1757280207512,1.39473036,111290.0,111280.0,0.16928805]
[1757280208216,1.39473036,111290.0,111280.0,0.0885255]
[1757280210417,1.59266072,111290.0,111280.0,0.16927126]
[1757280214215,1.39473036,111290.0,111280.0,0.16927126]
[1757280217621,1.59266072,111290.0,111280.0,0.16927126]
[1757280220227,1.59266072,111290.0,111280.0,0.0885255]
[1757280220427,1.59266072,111290.0,111280.0,0.20170968]
[1757280220924,1.39473036,111290.0,111280.0,0.20170968]
[1757280221929,1.39473036,111290.0,111280.0,0.16929461]
[1757280225728,1.59266072,111290.0,111280.0,0.16929461]
[1757280226331,1.39478649,111290.0,111280.0,0.16929461]
[1757280230436,1.39450649,111290.0,111280.0,0.16929461]
[1757280231739,1.39450649,111290.0,111280.0,0.0885255]
[1757280232833,1.39450649,111290.0,111280.0,0.20170968]
[1757280234632,1.39450649,111290.0,111280.0,0.20619968]
[1757280240743,1.19652,111290.0,111280.0,0.20619968]
[1757280241042,1.39450649,111290.0,111280.0,0.20619968]
[1757280244947,0.57970649,111290.0,111280.0,0.20619968]
[1757280245147,1.39430649,111290.0,111280.0,0.20619968]
[1757280255856,1.39430649,111290.0,111280.0,0.18342968]
[1757280256956,1.39430649,111290.0,111280.0,0.20586968]
[1757280259361,0.57970649,111290.0,111280.0,0.20586968]
[1757280259562,1.39418649,111290.0,111280.0,0.18342968]
[1757280265366,1.1962,111290.0,111280.0,0.18342968]
[1757280265568,1.39418649,111290.0,111280.0,0.16541418]
[1757280267172,1.39418649,111290.0,111280.0,0.15167418]
[1757280268369,0.57970649,111290.0,111280.0,0.15167418]
[1757280268568,1.39406649,111290.0,111280.0,0.15167418]
[1757280274774,0.57970649,111290.0,111280.0,0.15167418]
[1757280275074,1.39398649,111290.0,111280.0,0.15167418]
[1757280275375,1.39398649,111290.0,111280.0,0.03849]
[1757280276075,1.39398649,111290.0,111280.0,0.11936353]
[1757280276978,1.39398649,111290.0,111280.0,0.03849]
[1757280277275,1.39398649,111290.0,111280.0,0.11935538]
[1757280281781,1.39398649,111290.0,111280.0,0.23253956]
[1757280282076,1.39398649,111290.0,111280.0,0.15167418]
[1757280288277,1.39401603,111290.0,111280.0,0.15167418]
[1757280288484,1.59203206,111290.0,111280.0,0.15167418]
[1757280299190,1.59203206,111290.0,111280.0,0.03849]
[1757280300887,1.59203206,111290.0,111280.0,0.11934976]
[1757280305295,1.59203206,111290.0,111280.0,0.07786421]
[1757280305495,2.04004809,111290.0,111280.0,0.03636421]
[1757280305897,0.02851,111280.0,111270.0,0.131825]
[1757280306094,0.98255809,111280.0,111270.0,0.01854082]
[1757280307196,0.98355809,111280.0,111270.0,0.02954082]
[1757280308398,0.98455809,111280.0,111270.0,0.04154082]
[1757280308696,0.98355809,111280.0,111270.0,0.03354082]
[1757280309288,0.99055809,111280.0,111270.0,0.02254082]
[1757280310597,0.99455809,111280.0,111270.0,0.001]
[1757280311099,1.80843809,111280.0,111270.0,0.001]
[1757280311999,1.80043809,111280.0,111260.0,0.01346]
[1757280312200,0.41775206,111270.0,111260.0,0.03665]
[1757280312398,0.79775206,111270.0,111260.0,0.03655]
[1757280313303,0.79775206,111270.0,111260.0,0.04555]
[1757280313812,0.79775206,111270.0,111260.0,0.04755]
[1757280314508,0.79775206,111270.0,111260.0,0.04855]
[1757280315009,1.61263206,111270.0,111260.0,0.04555]
[1757280326518,1.61263206,111270.0,111260.0,0.15873418]
[1757280330518,1.61263206,111270.0,111260.0,0.04555]
[1757280331721,1.61263206,111270.0,111260.0,0.15873418]
[1757280342734,0.79875206,111270.0,111260.0,0.15873418]
[1757280342934,1.61239206,111270.0,111260.0,0.15873418]
[1757280350344,1.612466,111270.0,111260.0,0.15873418]
[1757280358052,0.798826,111270.0,111260.0,0.15873418]
[1757280358245,1.612306,111270.0,111260.0,0.15873418]
[1757280372771,1.612306,111270.0,111260.0,0.13554418]
[1757280373867,1.612306,111270.0,111260.0,0.14003418]
[1757280375469,1.612306,111270.0,111260.0,0.16208418]
[1757280376970,1.612306,111270.0,111260.0,0.14003418]
[1757280377170,1.612306,111270.0,111260.0,0.12667418]
[1757280377473,1.612306,111270.0,111260.0,0.14872418]
[1757280378167,1.612306,111270.0,111260.0,0.12667418]
[1757280386974,1.612306,111270.0,111260.0,0.14872418]
[1757280391277,1.612306,111270.0,111260.0,0.12667418]
[1757280393171,1.612306,111270.0,111260.0,0.16206418]
[1757280393172,0.798826,111270.0,111260.0,0.16206418]
[1757280393376,1.611986,111270.0,111260.0,0.16206418]
[1757280394884,1.21584,111270.0,111260.0,0.16206418]
[1757280395080,1.611946,111270.0,111260.0,0.16206418]
[1757280405789,1.611946,111270.0,111260.0,0.12667418]
[1757280406881,1.611946,111270.0,111260.0,0.14775418]
[1757280409589,0.798826,111270.0,111260.0,0.14775418]
[1757280409784,1.611906,111270.0,111260.0,0.14775418]
[1757280412288,1.61194586,111270.0,111260.0,0.14775418]
[1757280414089,1.61194586,111270.0,111260.0,0.12667418]
[1757280414487,1.61194586,111270.0,111260.0,0.01349]
[1757280419995,0.79886586,111270.0,111260.0,0.01349]
[1757280420195,1.61190586,111270.0,111260.0,0.01349]
[1757280422197,1.61190586,111270.0,111260.0,0.12667418]
[1757280422391,0.79886586,111270.0,111260.0,0.12667418]
[1757280422696,1.61190586,111270.0,111260.0,0.12667418]
[1757280430395,0.79886586,111270.0,111260.0,0.12667418]
[1757280430595,1.61190586,111270.0,111260.0,0.12667418]
[1757280432103,1.61190586,111270.0,111260.0,0.01349]
[1757280435206,0.79886586,111270.0,111260.0,0.01349]
[1757280435508,1.61190586,111270.0,111260.0,0.01349]
[1757280443721,1.61186586,111270.0,111260.0,0.01349]
[1757280444218,1.61186586,111270.0,111260.0,0.12667418]
[1757280448323,0.79886586,111270.0,111260.0,0.14962418]
[1757280448523,1.61186586,111270.0,111260.0,0.14962418]
[1757280449620,0.79886586,111270.0,111260.0,0.14962418]
[1757280449819,0.79886586,111270.0,111260.0,0.18160351]
[1757280450024,1.61186586,111270.0,111260.0,0.18160351]
[1757280450918,1.61186586,111270.0,111260.0,0.16332418]
[1757280451827,1.61186586,111270.0,111260.0,0.05014]
[1757280454630,0.79886586,111270.0,111260.0,0.05014]
[1757280454831,1.61182586,111270.0,111260.0,0.05014]
[1757280456232,0.60079293,111270.0,111260.0,0.06832779]
[1757280456432,1.61182586,111270.0,111260.0,0.06832779]
[1757280460335,1.61182586,111270.0,111260.0,0.18151197]
[1757280466839,0.79886586,111270.0,111260.0,0.18151197]
[1757280467041,1.61178586,111270.0,111260.0,0.18151197]
[1757280474444,1.41367387,111270.0,111260.0,0.18151197]
[1757280481850,1.61170774,111270.0,111260.0,0.18151197]
[1757280483152,1.41367387,111270.0,111260.0,0.18151197]
[1757280483840,1.61170774,111270.0,111260.0,0.18151197]
[1757280488756,0.79878774,111270.0,111260.0,0.18151197]
[1757280488955,1.61162774,111270.0,111260.0,0.18151197]
[1757280514178,1.21556,111270.0,111260.0,0.18151197]
[1757280514378,1.61162774,111270.0,111260.0,0.18151197]
[1757280515677,1.61162774,111270.0,111260.0,0.06832779]
[1757280516071,0.79878774,111270.0,111260.0,0.06832779]
[1757280516273,1.61146774,111270.0,111260.0,0.06832779]
[1757280518377,0.40272,111270.0,111260.0,0.06832779]
[1757280518583,1.2154,111270.0,111260.0,0.18151197]
[1757280518778,1.41343387,111270.0,111260.0,0.18151197]
[1757280519178,0.60075387,111270.0,111260.0,0.18151197]
[1757280519481,1.41343387,111270.0,111260.0,0.18151197]
[1757280527787,1.41335387,111270.0,111260.0,0.18151197]
[1757280528283,1.41335387,111270.0,111260.0,0.06832779]
[1757280534290,1.41333392,111270.0,111260.0,0.06832779]
[1757280534589,1.41333392,111270.0,111260.0,0.18151197]
[1757280535492,1.41333392,111270.0,111260.0,0.06832779]
[1757280538193,1.41333392,111270.0,111260.0,0.18151197]
[1757280540095,1.41329392,111270.0,111260.0,0.18151197]
[1757280542001,1.41329392,111270.0,111260.0,0.06832779]
[1757280543898,1.41329392,111270.0,111260.0,0.18151197]
[1757280550903,1.61130784,111270.0,111260.0,0.18151197]
[1757280551099,1.41329392,111270.0,111260.0,0.18151197]
[1757280556808,1.61130784,111270.0,111260.0,0.18151197]
[1757280558404,1.41329392,111270.0,111260.0,0.18151197]
[1757280558608,1.61130784,111270.0,111260.0,0.18151197]
[1757280562809,1.41329392,111270.0,111260.0,0.18151197]
[1757280568825,0.60073392,111270.0,111260.0,0.18151197]
[1757280569023,1.41313392,111270.0,111260.0,0.18151197]
[1757280569322,0.60073392,111270.0,111260.0,0.18151197]
[1757280569522,1.41313392,111270.0,111260.0,0.18151197]
[1757280578130,1.41313392,111270.0,111260.0,0.16332418]
[1757280588637,0.60073392,111270.0,111260.0,0.16332418]
[1757280588837,1.41305392,111270.0,111260.0,0.16332418]
[1757280592444,1.21504,111270.0,111260.0,0.16332418]
[1757280592646,1.41305392,111270.0,111260.0,0.16332418]
[1757280596449,1.41306756,111270.0,111260.0,0.16332418]
[1757280600851,0.40272,111270.0,111260.0,0.16332418]
[1757280601050,1.41302756,111270.0,111260.0,0.16332418]
[1757280606760,0.60074756,111270.0,111260.0,0.16332418]
[1757280607052,1.21496,111270.0,111260.0,0.57910893]
[1757280608658,1.21496,111270.0,111260.0,0.38108137]
[1757280608858,1.21496,111270.0,111260.0,0.57910893]
[1757280611758,0.83496,111270.0,111260.0,0.57910893]
[1757280612159,1.17496,111270.0,111260.0,0.57910893]
[1757280615264,0.02272,111270.0,111260.0,0.57910893]
[1757280615466,0.8132,111270.0,111260.0,0.57910893]
[1757280615662,0.8132,111270.0,111260.0,0.49816756]
[1757280618177,0.83492,111270.0,111260.0,0.49816756]
[1757280622377,1.16492,111270.0,111260.0,0.49816756]
[1757280624379,0.83492,111270.0,111260.0,0.49816756]
[1757280624575,0.001,111270.0,111260.0,0.58804186]
[1757280624978,0.001,111270.0,111260.0,0.33804186]
[1757280626881,0.001,111270.0,111260.0,0.1400143]
[1757280627082,0.001,111270.0,111260.0,0.33804186]
[1757280631680,0.001,111270.0,111260.0,0.1400143]
[1757280631886,0.001,111270.0,111260.0,0.33804186]
[1757280635693,0.001,111270.0,111260.0,0.1400143]
[1757280635887,0.001,111270.0,111260.0,0.33804186]
[1757280637591,0.001,111270.0,111260.0,0.49971407]
[1757280640790,0.001,111270.0,111260.0,0.33804186]
[1757280643995,0.001,111270.0,111260.0,0.49971407]
[1757280646293,0.001,111270.0,111260.0,0.85971407]
[1757280646491,0.001,111270.0,111260.0,0.49971407]
[1757280650196,0.001,111270.0,111260.0,0.30168651]
[1757280650395,0.001,111270.0,111260.0,0.49971407]
[1757280653297,0.02190186,111270.0,111260.0,0.49971407]
[1757280654095,0.00018186,111270.0,111260.0,0.49971407]
[1757280654600,0.00018186,111270.0,111260.0,0.33804186]
[1757280654802,0.37018186,111270.0,111260.0,0.33804186]
[1757280655502,0.37018186,111270.0,111260.0,0.49986587]
[1757280656304,0.39190186,111270.0,111260.0,0.69775813]
[1757280657094,0.37018186,111270.0,111260.0,0.69775813]
[1757280658306,0.37018186,111270.0,111260.0,0.30183831]
[1757280658605,0.37018186,111270.0,111260.0,0.69775813]
[1757280659299,0.37018186,111270.0,111260.0,0.53593412]
[1757280660006,0.37018186,111270.0,111260.0,0.69776157]
[1757280664505,0.37,111270.0,111260.0,0.69776157]
[1757280664712,0.20022466,111270.0,111260.0,0.69776157]
[1757280672610,0.38,111270.0,111260.0,0.69776157]
[1757280674718,0.38,111270.0,111260.0,0.30184175]
[1757280674920,0.38,111270.0,111260.0,0.69776157]
[1757280682328,0.00013484,111280.0,111260.0,0.82776157]
[1757280682534,0.38174484,111280.0,111270.0,0.23485991]
[1757280682728,0.38174484,111280.0,111270.0,0.34814199]
[1757280684128,0.38474484,111280.0,111270.0,0.34814199]
[1757280684330,0.38474484,111280.0,111270.0,0.35263199]
[1757280684630,0.38474484,111280.0,111270.0,0.23934991]
[1757280685432,0.38774484,111280.0,111270.0,0.23934991]
[1757280689031,0.38774484,111280.0,111270.0,0.35261745]
[1757280689633,0.38774484,111280.0,111270.0,0.23934991]
[1757280693137,0.38774484,111280.0,111270.0,0.40117736]
[1757280695540,0.38774484,111280.0,111270.0,0.23934991]
[1757280697934,0.38774484,111280.0,111270.0,0.40117736]
[1757280698342,0.38774484,111280.0,111270.0,0.20321745]
[1757280698542,0.38774484,111280.0,111270.0,0.40117736]
[1757280701346,0.02774484,111280.0,111270.0,0.40117736]
[1757280701545,0.02774484,111280.0,111270.0,0.56117736]
[1757280701950,0.02774484,111280.0,111270.0,0.57117736]
[1757280703047,0.03675672,111280.0,111270.0,0.57117736]
[1757280703946,0.03675672,111280.0,111270.0,0.40117736]
[1757280704954,0.01514672,111280.0,111270.0,0.53117736]
[1757280705552,0.03638672,111280.0,111270.0,0.53117736]
[1757280706053,0.03338672,111280.0,111270.0,0.53117736]
[1757280706253,0.03338672,111280.0,111270.0,0.53417736]
[1757280706554,0.03038672,111280.0,111270.0,0.62404396]
[1757280706757,0.03138672,111280.0,111270.0,0.63104396]
[1757280708355,0.01014672,111280.0,111270.0,0.63104396]
[1757280708956,0.01014672,111280.0,111270.0,0.54117736]
[1757280709254,0.03138672,111280.0,111270.0,0.54117736]
[1757280718366,0.03138672,111280.0,111270.0,0.54114337]
[1757280722170,0.03138672,111280.0,111270.0,0.37931592]
[1757280728573,0.03138672,111280.0,111270.0,0.18139]
[1757280728868,0.03138672,111280.0,111270.0,0.37931592]
[1757280732570,0.03138672,111280.0,111270.0,0.54114337]
[1757280741578,0.03138672,111280.0,111270.0,0.34321745]
[1757280741873,0.03138672,111280.0,111270.0,0.54114337]
[1757280758787,0.03138672,111280.0,111270.0,0.34321745]
[1757280758989,0.03138672,111280.0,111270.0,0.54114337]
[1757280760091,0.57931264,111280.0,111270.0,0.21321745]
[1757280760883,0.57931264,111280.0,111270.0,0.05139]
[1757280761384,0.57931264,111280.0,111270.0,0.16465573]
[1757280762186,0.57931264,111280.0,111270.0,0.05139]
[1757280771695,0.57931264,111280.0,111270.0,0.16465573]
[1757280778308,0.77736904,111280.0,111270.0,0.16465573]
[1757280782314,0.77736904,111280.0,111270.0,0.05139]
[1757280784713,0.77736904,111280.0,111270.0,0.24938116]
[1757280785114,0.77736904,111280.0,111270.0,0.05139]
[1757280785313,0.77736904,111280.0,111270.0,0.24938116]
[1757280785612,1.58928904,111280.0,111270.0,0.24938116]
[1757280792822,1.58928904,111280.0,111270.0,0.05139]
[1757280794624,1.58928904,111280.0,111270.0,0.16469469]
[1757280802931,1.58928904,111280.0,111270.0,0.05139]
[1757280804434,1.58928904,111280.0,111270.0,0.04839]
[1757280804636,1.59328904,111280.0,111270.0,0.04839]
[1757280804934,1.59528904,111280.0,111270.0,0.04139]
[1757280806537,1.59528904,111280.0,111270.0,0.23938116]
[1757280819257,1.59528904,111280.0,111270.0,0.04139]
[1757280819449,1.59528904,111280.0,111270.0,0.23938116]
[1757280823554,1.59528904,111280.0,111270.0,0.04139]
[1757280831569,1.39729788,111280.0,111270.0,0.04139]
[1757280834773,1.39729788,111280.0,111270.0,0.01847]
[1757280835270,1.59528904,111280.0,111270.0,0.00449]
[1757280835472,1.19930672,111280.0,111270.0,0.00449]
[1757280835667,1.59528904,111280.0,111270.0,0.00449]
[1757280839078,1.59528904,111280.0,111270.0,0.02777]
[1757280839269,1.59528904,111280.0,111270.0,0.04128]
[1757280840577,1.39729525,111280.0,111270.0,0.04128]
[1757280842480,1.39729525,111280.0,111270.0,0.018]
[1757280842878,1.19930672,111280.0,111270.0,0.018]
[1757280843079,1.39729525,111280.0,111270.0,0.0398]
[1757280846378,1.64729525,111280.0,111270.0,0.11779463]
[1757280846587,1.65408525,111280.0,111270.0,0.11779463]
[1757280846882,1.65408525,111280.0,111270.0,0.00449]
[1757280850691,1.65408525,111280.0,111270.0,0.11779463]
[1757280862404,1.45609672,111280.0,111270.0,0.11779463]
[1757280862601,1.65408525,111280.0,111270.0,0.11779463]
[1757280879308,1.40408525,111280.0,111270.0,0.11779463]
[1757280881509,1.20609672,111280.0,111270.0,0.11779463]
[1757280881711,1.40408525,111280.0,111270.0,0.11779463]
[1757280883310,1.40008525,111280.0,111270.0,0.11779463]
[1757280883513,1.40408525,111280.0,111270.0,0.11779463]
[1757280884010,1.40108525,111280.0,111270.0,0.11779463]
[1757280884211,1.40308525,111280.0,111270.0,0.11879463]
[1757280889515,0.59116525,111280.0,111270.0,0.11879463]
[1757280889812,1.40272525,111280.0,111270.0,0.11879463]